fUST/lending_fUST_20250302
["ID","MTS","AMOUNT","RATE_DAILY","PERIOD"]
[355018588,1740869246768,-500.0,0.00024657,2]
[355018589,1740869246790,-5856.58,0.00024657,2]
[355018590,1740869246818,-500.0,0.00024657,2]
[355018591,1740869246840,-1900.86,0.00024657,2]
[355018592,1740869246862,-1000.0,0.00024657,2]
[355018593,1740869246884,-500.0,0.00024657,2]
[355018594,1740869246907,-500.0,0.00024657,2]
[355018595,1740869246928,-500.0,0.00024657,2]
[355018596,1740869246952,-507.57,0.00024657,2]
[355018597,1740869246973,-1138.18,0.00024657,2]
[355018598,1740869246994,-500.0,0.00024657,2]
[355018599,1740869247016,-761.63,0.00024657,2]
[355018600,1740869247038,-500.0,0.00024657,2]
[355018601,1740869247060,-500.0,0.00024657,2]
[355018602,1740869247083,-545.84,0.00024657,2]
[355018603,1740869247106,-1057.63,0.00024657,2]
[355018604,1740869247127,-500.0,0.00024657,2]
[355018605,1740869247149,-500.0,0.00024657,2]
[355018606,1740869247172,-14462.43,0.00024657,2]
[355018607,1740869247194,-500.0,0.00024657,2]
[355018608,1740869247217,-500.0,0.00024657,2]
[355018609,1740869247240,-500.0,0.00024657,2]
[355018610,1740869247263,-733.66,0.00024657,2]
[355018611,1740869247285,-500.0,0.00024657,2]
[355018612,1740869247308,-500.0,0.00024657,2]
[355018613,1740869247331,-500.0,0.00024657,2]
[355018614,1740869247354,-500.0,0.00024657,2]
[355018615,1740869247376,-500.0,0.00024657,2]
[355018616,1740869247400,-500.0,0.00024657,2]
[355018617,1740869247422,-1077.22,0.00024657,2]
[355018618,1740869247444,-207.29819948,0.00024657,2]
[355018619,1740869247466,-500.0,0.00024657,2]
[355018620,1740869247488,-7343.31,0.00024657,2]
[355018621,1740869247510,-500.0,0.00024657,2]
[355018622,1740869247534,-500.0,0.00024657,2]
[355018623,1740869247560,-500.0,0.00024657,2]
[355018624,1740869247584,-500.0,0.00024657,2]
[355018625,1740869247606,-500.0,0.00024657,2]
[355018626,1740869247628,-500.0,0.00024657,2]
[355018627,1740869247654,-500.0,0.00024657,2]
[355018628,1740869247676,-500.0,0.00024657,2]
[355018629,1740869247698,-500.0,0.00024657,2]
[355018630,1740869247721,-1365.57,0.00024657,2]
[355018631,1740869247742,-500.0,0.00024657,2]
[355018632,1740869247764,-500.0,0.00024657,2]
[355018633,1740869247785,-500.0,0.00024657,2]
[355018634,1740869247807,-500.0,0.00024657,2]
[355018635,1740869247828,-500.0,0.00024657,2]
[355018636,1740869247850,-1253.46,0.00024657,2]
[355018637,1740869247873,-500.0,0.00024657,2]
[355018638,1740869247895,-500.0,0.00024657,2]
[355018639,1740869247918,-500.0,0.00024657,2]
[355018640,1740869247939,-751.12,0.00024657,2]
[355018641,1740869247961,-500.0,0.00024657,2]
[355018642,1740869247983,-500.0,0.00024657,2]
[355018643,1740869248005,-500.0,0.00024657,2]
[355018644,1740869248026,-500.0,0.00024657,2]
[355018645,1740869248049,-500.0,0.00024657,2]
[355018646,1740869248071,-500.0,0.00024657,2]
[355018647,1740869248095,-500.0,0.00024657,2]
[355018648,1740869248117,-500.0,0.00024657,2]
[355018649,1740869248144,-500.0,0.00024657,2]
[355018650,1740869248166,-500.0,0.00024657,2]
[355018651,1740869248188,-4716.6,0.00024657,2]
[355018652,1740869248211,-500.0,0.00024657,2]
[355018653,1740869248231,-10355.55,0.00024657,2]
[355018654,1740869248253,-291.55,0.00024657,2]
[355018655,1740869248275,-525.37108251,0.00024657,2]
[355018656,1740869248296,-500.0,0.00024657,2]
[355018657,1740869248318,-500.0,0.00024657,2]
[355018658,1740869248343,-500.0,0.00024657,2]
[355018659,1740869248364,-500.0,0.00024657,2]
[355018660,1740869248386,-1003.05,0.00024657,2]
[355018661,1740869248409,-32401.51,0.00024657,2]
[355018662,1740869248431,-500.0,0.00024657,2]
[355018663,1740869248453,-500.0,0.00024657,2]
[355018664,1740869248476,-916.13,0.00024657,2]
[355018665,1740869248498,-1608.32,0.00024657,2]
[355018666,1740869248520,-500.0,0.00024657,2]
[355018667,1740869248543,-2352.71,0.00024657,2]
[355018668,1740869248567,-1462.76,0.00024657,2]
[355018669,1740869248590,-500.0,0.00024657,2]
[355018670,1740869248615,-520.93932452,0.00024657,2]
[355018671,1740869248641,-500.0,0.00024657,2]
[355018672,1740869248663,-500.0,0.00024657,2]
[355018673,1740869248689,-794.45,0.00024657,2]
[355018674,1740869248714,-794.45,0.00024657,2]
[355018675,1740869248737,-500.0,0.00024657,2]
[355018676,1740869248759,-794.45,0.00024657,2]
[355018677,1740869248782,-500.0,0.00024657,2]
[355018678,1740869248805,-794.45,0.00024657,2]
[355018679,1740869248827,-794.45,0.00024657,2]
[355018680,1740869248851,-500.0,0.00024657,2]
[355018681,1740869248874,-794.45,0.00024657,2]
[355018682,1740869248897,-2204.16,0.00024657,2]
[355018683,1740869248919,-794.45,0.00024657,2]
[355018684,1740869248942,-794.45,0.00024657,2]
[355018685,1740869248965,-500.0,0.00024657,2]
[355018686,1740869248986,-794.45,0.00024657,2]
[355018687,1740869249008,-794.45,0.00024657,2]
[355018688,1740869249031,-500.0,0.00024657,2]
[355018689,1740869249054,-794.45,0.00024657,2]
[355018690,1740869249076,-794.45,0.00024657,2]
[355018691,1740869249099,-794.45,0.00024657,2]
[355018692,1740869249121,-794.45,0.00024657,2]
[355018693,1740869249144,-794.45,0.00024657,2]
[355018694,1740869249167,-794.45,0.00024657,2]
[355018695,1740869249189,-794.45,0.00024657,2]
[355018696,1740869249211,-794.45,0.00024657,2]
[355018697,1740869249235,-794.45,0.00024657,2]
[355018698,1740869249257,-500.0,0.00024657,2]
[355018699,1740869249280,-794.45,0.00024657,2]
[355018700,1740869249304,-3033.25,0.00024657,2]
[355018701,1740869249327,-794.45,0.00024657,2]
[355018702,1740869249351,-794.45,0.00024657,2]
[355018703,1740869249373,-794.45,0.00024657,2]
[355018704,1740869249395,-794.55626883,0.00024657,2]
[355018705,1740869249419,-1314.64,0.00024657,2]
[355018706,1740869249442,-500.0,0.00024657,2]
[355018707,1740869249464,-500.0,0.00024657,2]
[355018708,1740869249488,-500.0,0.00024657,2]
[355018709,1740869249511,-2497.31,0.00024657,2]
[355018710,1740869249536,-617.4,0.00024657,2]
[355018711,1740869249559,-6588.63,0.00024657,2]
[355018712,1740869249582,-2157.87,0.00024657,2]
[355018713,1740869249605,-607.65,0.00024657,2]
[355018714,1740869249628,-500.0,0.00024657,2]
[355018715,1740869249655,-500.0,0.00024657,2]
[355018716,1740869249679,-835.73,0.00024657,2]
[355018717,1740869249702,-14102.17,0.00024657,2]
[355018718,1740869249728,-500.0,0.00024657,2]
[355018719,1740869249751,-500.0,0.00024657,2]
[355018720,1740869249774,-1000.0,0.00024657,5]
[355018721,1740869249798,-500.0,0.00024657,2]
[355018722,1740869249821,-500.0,0.00024657,2]
[355018723,1740869249844,-500.0,0.00024657,2]
[355018724,1740869249868,-2053.54,0.00024657,2]
[355018725,1740869249892,-1211.21,0.00024657,2]
[355018726,1740869249915,-500.0,0.00024657,2]
[355018727,1740869249937,-338.29486347,0.00024657,2]
[355018728,1740869254209,-4663.09963663,0.00023827,2]
[355018795,1740869432986,-2400.58835022,0.000235,2]
[355018800,1740869438597,-5889.97050912,0.000235,2]
[355018801,1740869438607,-371.3779026,0.00023657,2]
[355018802,1740869438618,-518.916895,0.00023773,2]
[355018803,1740869438627,-300.0,0.00023826,2]
[355018804,1740869438637,-678.14392147,0.00023827,2]
[355018805,1740869438647,-850.9847602,0.00023827,2]
[355018806,1740869438658,-594.12557633,0.00024557,2]
[355018807,1740869438667,-500.0,0.00024656,2]
[355018808,1740869438677,-500.0,0.00024656,2]
[355018809,1740869438688,-500.0,0.00024656,2]
[355018810,1740869438701,-296.64666699,0.00024656,2]
[355018811,1740869438714,-203.35333301,0.00024656,2]
[355018812,1740869438724,-209.55956273,0.00024656,2]
[355018813,1740869438735,-500.0,0.00024656,2]
[355018814,1740869438747,-161.70513653,0.00024657,2]
[355018815,1740869438757,-500.0,0.00024657,2]
[355018817,1740869438770,-500.0,0.00024657,2]
[355018819,1740869438782,-500.0,0.00024657,2]
[355018820,1740869438792,-152.7196056,0.00024657,2]
[355018827,1740869440206,-347.2803944,0.00024657,2]
[355018829,1740869440217,-170.84178745,0.00024657,2]
[355018836,1740869440357,-853.89821255,0.00024657,2]
[355018837,1740869440367,-500.0,0.00024657,2]
[355018838,1740869440376,-500.0,0.00024657,2]
[355018840,1740869440387,-500.0,0.00024657,2]
[355018842,1740869440396,-500.0,0.00024657,2]
[355018844,1740869440406,-500.0,0.00024657,2]
[355018845,1740869440416,-500.0,0.00024657,2]
[355018847,1740869440426,-955.88,0.00024657,2]
[355018849,1740869440436,-500.0,0.00024657,2]
[355018851,1740869440446,-500.0,0.00024657,2]
[355018853,1740869440457,-500.0,0.00024657,2]
[355018854,1740869440467,-500.0,0.00024657,2]
[355018856,1740869440477,-224.32975902,0.00024657,2]
[355018858,1740869440487,-500.0,0.00024657,2]
[355018860,1740869440498,-500.0,0.00024657,2]
[355018861,1740869440508,-502.59422479,0.00024657,2]
[355018863,1740869440518,-500.0,0.00024657,2]
[355018864,1740869440529,-500.0,0.00024657,2]
[355018866,1740869440538,-500.0,0.00024657,2]
[355018867,1740869440548,-500.0,0.00024657,2]
[355018868,1740869440558,-500.0,0.00024657,2]
[355018869,1740869440569,-500.0,0.00024657,2]
[355018870,1740869440579,-500.0,0.00024657,2]
[355018871,1740869440589,-854.11,0.00024657,2]
[355018872,1740869440599,-500.0,0.00024657,2]
[355018873,1740869440609,-261.59417179,0.00024657,2]
[355018874,1740869440620,-500.0,0.00024657,2]
[355018875,1740869440630,-500.0,0.00024657,2]
[355018876,1740869440640,-500.0,0.00024657,2]
[355018877,1740869440650,-500.0,0.00024657,2]
[355018878,1740869440659,-500.0,0.00024657,2]
[355018879,1740869440670,-500.0,0.00024657,2]
[355018880,1740869440680,-500.0,0.00024657,2]
[355018881,1740869440692,-500.0,0.00024657,2]
[355018882,1740869440702,-500.0,0.00024657,2]
[355018883,1740869440712,-500.0,0.00024657,2]
[355018885,1740869440721,-500.0,0.00024657,2]
[355018886,1740869440731,-500.0,0.00024657,2]
[355018888,1740869440741,-500.0,0.00024657,2]
[355018890,1740869440751,-565.52,0.00024657,2]
[355018892,1740869440761,-509.48,0.00024657,2]
[355018894,1740869440775,-500.0,0.00024657,2]
[355018896,1740869440786,-500.0,0.00024657,2]
[355018898,1740869440796,-632.33112071,0.00024657,2]
[355018899,1740869440806,-559.06471985,0.00024657,2]
[355018901,1740869440816,-500.0,0.00024657,2]
[355018903,1740869440826,-500.0,0.00024657,2]
[355018904,1740869440837,-510.19824017,0.00024657,2]
[355018905,1740869440846,-500.0,0.00024657,2]
[355018906,1740869440856,-500.0,0.00024657,2]
[355018907,1740869440866,-267.40314318,0.00024657,2]
[355018908,1740869440876,-1042.76,0.00024657,2]
[355018909,1740869440886,-2968.67,0.00024657,2]
[355018910,1740869440896,-500.0,0.00024657,2]
[355018911,1740869440906,-500.0,0.00024657,2]
[355018912,1740869440915,-500.0,0.00024657,2]
[355018913,1740869440925,-500.0,0.00024657,2]
[355018914,1740869440934,-500.0,0.00024657,2]
[355018915,1740869440944,-500.0,0.00024657,2]
[355018916,1740869440954,-500.0,0.00024657,2]
[355018917,1740869440965,-500.0,0.00024657,2]
[355018918,1740869440974,-500.0,0.00024657,2]
[355018919,1740869440984,-500.0,0.00024657,2]
[355018920,1740869440993,-1506.03,0.00024657,2]
[355018921,1740869441004,-500.0,0.00024657,2]
[355018922,1740869441013,-753.21,0.00024657,2]
[355018923,1740869441023,-716.29,0.00024657,2]
[355018924,1740869441033,-500.0,0.00024657,2]
[355018925,1740869441043,-500.0,0.00024657,2]
[355018926,1740869441053,-552.49454,0.00024657,2]
[355018927,1740869441063,-603.78,0.00024657,2]
[355018928,1740869441073,-500.0,0.00024657,2]
[355018929,1740869441083,-1854.45,0.00024657,2]
[355018930,1740869441093,-9503.98,0.00024657,2]
[355018931,1740869441103,-506.40713011,0.00024657,2]
[355018932,1740869441112,-500.0,0.00024657,2]
[355018933,1740869441124,-507.38659911,0.00024657,2]
[355018934,1740869441134,-500.0,0.00024657,2]
[355018935,1740869441144,-500.0,0.00024657,2]
[355018936,1740869441154,-1807.55,0.00024657,2]
[355018937,1740869441165,-500.0,0.00024657,2]
[355018938,1740869441175,-500.0,0.00024657,2]
[355018939,1740869441185,-500.0,0.00024657,2]
[355018940,1740869441195,-500.0,0.00024657,2]
[355018941,1740869441206,-500.0,0.00024657,2]
[355018942,1740869441215,-500.0,0.00024657,2]
[355018943,1740869441226,-1426.96,0.00024657,2]
[355018944,1740869441235,-500.0,0.00024657,2]
[355018945,1740869441246,-1265.66,0.00024657,2]
[355018946,1740869441268,-500.0,0.00024657,2]
[355018947,1740869441279,-700.06,0.00024657,2]
[355018948,1740869441290,-759.39,0.00024657,2]
[355018949,1740869441300,-3269.32,0.00024657,2]
[355018950,1740869441310,-500.0,0.00024657,2]
[355018951,1740869441321,-500.0,0.00024657,2]
[355018952,1740869441332,-500.0,0.00024657,2]
[355018953,1740869441343,-500.0,0.00024657,2]
[355018954,1740869441353,-500.0,0.00024657,2]
[355018955,1740869441363,-752.86,0.00024657,2]
[355018956,1740869441373,-500.0,0.00024657,2]
[355018957,1740869441383,-543.19,0.00024657,2]
[355018958,1740869441394,-2518.74,0.00024657,2]
[355018959,1740869441404,-500.0,0.00024657,2]
[355018960,1740869441414,-500.0,0.00024657,2]
[355018961,1740869441425,-500.0,0.00024657,2]
[355018962,1740869441435,-1956.61,0.00024657,2]
[355018963,1740869441445,-2027.59,0.00024657,2]
[355018964,1740869441455,-500.0,0.00024657,2]
[355018965,1740869441465,-2021.19,0.00024657,2]
[355018966,1740869441475,-178109.75,0.00024657,2]
[355018967,1740869441485,-500.0,0.00024657,2]
[355018968,1740869441496,-500.0,0.00024657,2]
[355018969,1740869441506,-756.44,0.00024657,2]
[355018970,1740869441517,-500.0,0.00024657,2]
[355018971,1740869441527,-500.0,0.00024657,2]
[355018972,1740869441537,-894.36,0.00024657,2]
[355018973,1740869441548,-500.0,0.00024657,2]
[355018974,1740869441558,-1944.71,0.00024657,2]
[355018975,1740869441569,-500.0,0.00024657,2]
[355018976,1740869441579,-500.0,0.00024657,2]
[355018977,1740869441589,-500.0,0.00024657,2]
[355018978,1740869441599,-500.0,0.00024657,2]
[355018979,1740869441610,-500.0,0.00024657,2]
[355018980,1740869441619,-500.0,0.00024657,2]
[355018981,1740869441630,-500.0,0.00024657,2]
[355018982,1740869441640,-3542.43,0.00024657,2]
[355018983,1740869441649,-732.06,0.00024657,2]
[355018984,1740869441659,-555.78,0.00024657,2]
[355018985,1740869441669,-1393.47,0.00024657,2]
[355018986,1740869441679,-3614.66,0.00024657,2]
[355018987,1740869441689,-500.0,0.00024657,2]
[355018988,1740869441702,-500.0,0.00024657,2]
[355018989,1740869441712,-500.0,0.00024657,2]
[355018990,1740869441722,-500.0,0.00024657,2]
[355018991,1740869441732,-5612.56,0.00024657,2]
[355018992,1740869441743,-500.0,0.00024657,2]
[355018993,1740869441753,-500.0,0.00024657,2]
[355018994,1740869441764,-1821.66,0.00024657,2]
[355018995,1740869441775,-500.0,0.00024657,2]
[355018996,1740869441786,-500.0,0.00024657,2]
[355018997,1740869441797,-500.0,0.00024657,2]
[355018998,1740869441806,-500.0,0.00024657,2]
[355018999,1740869441816,-500.0,0.00024657,2]
[355019000,1740869441825,-500.0,0.00024657,2]
[355019001,1740869441836,-500.0,0.00024657,2]
[355019002,1740869441847,-500.0,0.00024657,2]
[355019003,1740869441856,-500.0,0.00024657,2]
[355019004,1740869441868,-500.0,0.00024657,2]
[355019005,1740869441884,-500.0,0.00024657,2]
[355019006,1740869441895,-720.41,0.00024657,2]
[355019007,1740869441904,-1013.56,0.00024657,2]
[355019008,1740869441915,-523.09,0.00024657,2]
[355019009,1740869441925,-1051.42,0.00024657,2]
[355019010,1740869441935,-500.0,0.00024657,2]
[355019011,1740869441946,-500.0,0.00024657,2]
[355019012,1740869441955,-500.0,0.00024657,2]
[355019013,1740869441965,-500.0,0.00024657,2]
[355019014,1740869441975,-500.0,0.00024657,2]
[355019015,1740869441985,-741.7,0.00024657,2]
[355019016,1740869441996,-970.3,0.00024657,2]
[355019017,1740869442006,-500.0,0.00024657,2]
[355019018,1740869442016,-500.0,0.00024657,2]
[355019019,1740869442026,-154.78528346,0.00024657,2]
[355019020,1740869442036,-594.04,0.00024657,2]
[355019021,1740869442046,-500.0,0.00024657,2]
[355019022,1740869442056,-500.0,0.00024657,2]
[355019023,1740869442066,-500.0,0.00024657,2]
[355019024,1740869442076,-500.0,0.00024657,2]
[355019025,1740869442086,-802.0,0.00024657,2]
[355019026,1740869442096,-500.0,0.00024657,2]
[355019027,1740869442107,-756.88,0.00024657,2]
[355019028,1740869442116,-500.0,0.00024657,2]
[355019029,1740869442126,-500.0,0.00024657,2]
[355019030,1740869442136,-500.0,0.00024657,2]
[355019031,1740869442145,-500.0,0.00024657,2]
[355019032,1740869442155,-500.0,0.00024657,2]
[355019033,1740869442166,-500.0,0.00024657,2]
[355019034,1740869442175,-500.0,0.00024657,2]
[355019035,1740869442186,-500.0,0.00024657,2]
[355019036,1740869442196,-500.0,0.00024657,2]
[355019037,1740869442207,-500.0,0.00024657,2]
[355019038,1740869442217,-500.0,0.00024657,2]
[355019039,1740869442226,-1380.54,0.00024657,2]
[355019040,1740869442236,-769.98,0.00024657,2]
[355019041,1740869442246,-500.0,0.00024657,2]
[355019042,1740869442256,-908.34,0.00024657,2]
[355019043,1740869442266,-500.0,0.00024657,2]
[355019044,1740869442276,-500.0,0.00024657,2]
[355019045,1740869442286,-500.0,0.00024657,2]
[355019046,1740869442296,-1051.16,0.00024657,2]
[355019047,1740869442306,-500.0,0.00024657,2]
[355019048,1740869442315,-3066.51,0.00024657,2]
[355019049,1740869442325,-14621.01,0.00024657,2]
[355019050,1740869442334,-935.87,0.00024657,2]
[355019051,1740869442345,-32756.79,0.00024657,2]
[355019052,1740869442355,-500.0,0.00024657,2]
[355019053,1740869442365,-500.0,0.00024657,2]
[355019054,1740869442376,-500.0,0.00024657,2]
[355019055,1740869442386,-539.72,0.00024657,2]
[355019056,1740869442396,-1478.8,0.00024657,2]
[355019057,1740869442406,-1085.25,0.00024657,5]
[355019058,1740869442416,-598.59,0.00024657,2]
[355019059,1740869442426,-500.0,0.00024657,2]
[355019060,1740869442436,-500.0,0.00024657,2]
[355019061,1740869442447,-6660.88,0.00024657,2]
[355019062,1740869442456,-500.0,0.00024657,2]
[355019063,1740869442466,-500.0,0.00024657,2]
[355019064,1740869442476,-7423.82,0.00024657,2]
[355019065,1740869442485,-790.15,0.00024657,2]
[355019066,1740869442496,-2228.33,0.00024657,2]
[355019067,1740869442506,-500.0,0.00024657,2]
[355019068,1740869442515,-500.0,0.00024657,2]
[355019069,1740869442525,-1197.71,0.00024657,2]
[355019070,1740869442534,-1497.15,0.00024657,2]
[355019071,1740869442544,-500.0,0.00024657,2]
[355019072,1740869442554,-507.36,0.00024657,2]
[355019073,1740869442563,-500.0,0.00024657,2]
[355019074,1740869442574,-500.0,0.00024657,2]
[355019075,1740869442583,-4768.32,0.00024657,2]
[355019076,1740869442593,-14298.04,0.00024657,2]
[355019077,1740869442604,-790.62,0.00024657,2]
[355019078,1740869442614,-500.0,0.00024657,2]
[355019079,1740869442623,-465.09879771,0.00024657,2]
[355019080,1740869442633,-500.0,0.00024657,2]
[355019081,1740869442643,-1988.8,0.00024657,2]
[355019082,1740869442652,-1044.28,0.00024657,2]
[355019083,1740869442662,-3889.5,0.00024657,2]
[355019084,1740869442672,-250.80359435,0.00024657,2]
[355019085,1740869442682,-500.0,0.00024657,2]
[355019086,1740869442695,-500.0,0.00024657,2]
[355019087,1740869442704,-1555.46,0.00024657,2]
[355019088,1740869442714,-500.0,0.00024657,2]
[355019089,1740869442724,-500.0,0.00024657,2]
[355019090,1740869442734,-853.64,0.00024657,2]
[355019091,1740869442746,-500.0,0.00024657,2]
[355019092,1740869442756,-812.01,0.00024657,2]
[355019093,1740869442767,-500.0,0.00024657,2]
[355019094,1740869442777,-500.0,0.00024657,2]
[355019095,1740869442787,-500.0,0.00024657,2]
[355019096,1740869442797,-543.82,0.00024657,2]
[355019097,1740869442808,-500.0,0.00024657,2]
[355019098,1740869442817,-500.0,0.00024657,2]
[355019099,1740869442827,-558.11,0.00024657,2]
[355019100,1740869442838,-1006.83,0.00024657,2]
[355019101,1740869442847,-500.0,0.00024657,2]
[355019102,1740869442857,-500.0,0.00024657,2]
[355019103,1740869442867,-1329.05,0.00024657,2]
[355019104,1740869442877,-1078.67,0.00024657,2]
[355019105,1740869442887,-500.0,0.00024657,2]
[355019106,1740869442896,-457.19920763,0.00024657,2]
[355019107,1740869442906,-500.0,0.00024657,2]
[355019108,1740869442915,-500.0,0.00024657,2]
[355019109,1740869442924,-5307.31,0.00024657,2]
[355019110,1740869442934,-500.0,0.00024657,2]
[355019111,1740869442943,-500.0,0.00024657,2]
[355019112,1740869442953,-500.0,0.00024657,2]
[355019113,1740869442962,-500.0,0.00024657,2]
[355019114,1740869442973,-500.0,0.00024657,2]
[355019115,1740869442982,-500.0,0.00024657,2]
[355019116,1740869442992,-500.0,0.00024657,2]
[355019117,1740869443001,-500.0,0.00024657,2]
[355019118,1740869443011,-500.0,0.00024657,2]
[355019119,1740869443020,-500.0,0.00024657,2]
[355019120,1740869443030,-3057.83,0.00024657,2]
[355019121,1740869443039,-500.0,0.00024657,2]
[355019122,1740869443049,-500.0,0.00024657,2]
[355019123,1740869443059,-500.0,0.00024657,2]
[355019124,1740869443068,-596.94,0.00024657,2]
[355019125,1740869443078,-5701.93,0.00024657,2]
[355019126,1740869443088,-500.0,0.00024657,2]
[355019127,1740869443098,-1342.9,0.00024657,2]
[355019128,1740869443107,-500.0,0.00024657,2]
[355019129,1740869443117,-500.0,0.00024657,2]
[355019130,1740869443126,-500.0,0.00024657,2]
[355019132,1740869443136,-389.3726685,0.00024657,2]
[355019133,1740869443146,-500.0,0.00024657,2]
[355019134,1740869443156,-11514.28,0.00024657,2]
[355019135,1740869443166,-861.05,0.00024657,2]
[355019136,1740869443175,-1793.73,0.00024657,2]
[355019137,1740869443184,-649.01,0.00024657,2]
[355019138,1740869443194,-500.0,0.00024657,2]
[355019139,1740869443204,-644.0100119,0.00024658,2]
[355019140,1740869443214,-254.57355322,0.00024673,2]
[355019141,1740869443223,-300.26517633,0.00024673,2]
[355019142,1740869443233,-268.64932979,0.00024673,2]
[355019143,1740869443243,-500.0,0.00024673,2]
[355019144,1740869443253,-500.0,0.00024673,2]
[355019145,1740869443263,-4632.5446524,0.00024831,2]
[355019146,1740869443272,-222000.0,0.00024831,2]
[355019147,1740869443283,-502.76851708,0.00024931,2]
[355019148,1740869443292,-500.0,0.00024931,2]
[355019149,1740869443302,-500.0,0.00024931,2]
[355019151,1740869443311,-500.0,0.00024931,2]
[355019153,1740869443321,-500.0,0.00024931,2]
[355019154,1740869443331,-500.0,0.00024931,2]
[355019155,1740869443341,-500.0,0.00024931,2]
[355019156,1740869443351,-500.0,0.00024931,2]
[355019157,1740869443361,-500.0,0.00024931,2]
[355019158,1740869443371,-500.0,0.00024931,2]
[355019159,1740869443381,-558.2776123,0.00024931,2]
[355019160,1740869443391,-500.0,0.00024931,2]
[355019161,1740869443400,-500.0,0.00024931,2]
[355019162,1740869443411,-501.38460616,0.00024931,2]
[355019163,1740869443421,-500.0,0.00024931,2]
[355019164,1740869443431,-500.0,0.00024931,2]
[355019165,1740869443441,-500.0,0.00024931,2]
[355019166,1740869443450,-500.0,0.00024931,2]
[355019167,1740869443460,-505.40828293,0.00024931,2]
[355019168,1740869443470,-500.0,0.00024931,2]
[355019169,1740869443480,-500.0,0.00024931,2]
[355019170,1740869443490,-500.0,0.00024931,2]
[355019171,1740869443500,-500.0,0.00024931,2]
[355019172,1740869443509,-500.0,0.00024931,2]
[355019173,1740869443520,-500.0,0.00024931,2]
[355019174,1740869443530,-500.0,0.00024931,2]
[355019175,1740869443540,-367.71920292,0.00024931,2]
[355019176,1740869443551,-500.0,0.00024931,2]
[355019177,1740869443560,-500.0,0.00024931,2]
[355019178,1740869443570,-500.0,0.00024931,2]
[355019179,1740869443580,-500.0,0.00024931,2]
[355019180,1740869443590,-500.0,0.00024931,2]
[355019181,1740869443600,-1388.85,0.00024931,2]
[355019182,1740869443610,-500.0,0.00024931,2]
[355019183,1740869443620,-500.0,0.00024931,2]
[355019184,1740869443630,-500.0,0.00024931,2]
[355019185,1740869443640,-500.0,0.00024931,2]
[355019186,1740869443650,-500.0,0.00024931,2]
[355019187,1740869443659,-500.0,0.00024931,2]
[355019188,1740869443670,-500.0,0.00024931,2]
[355019189,1740869443680,-500.0,0.00024931,2]
[355019190,1740869443690,-500.0,0.00024931,2]
[355019191,1740869443702,-500.0,0.00024931,2]
[355019192,1740869443712,-806.6,0.00024931,2]
[355019193,1740869443722,-513.64183561,0.00024931,2]
[355019194,1740869443732,-500.0,0.00024931,2]
[355019195,1740869443743,-500.0,0.00024931,2]
[355019196,1740869443754,-500.0,0.00024931,2]